lending/lending_fUSD_20251111
["ID","MTS","AMOUNT","RATE_DAILY","PERIOD"]
[393646826,1762875049830,-151.0,0.00040126,7]
[393646827,1762875049839,-151.0,0.00040126,7]
[393646828,1762875049851,-151.0,0.00040126,7]
[393646829,1762875049860,-151.541916,0.00040126,7]
[393646830,1762875049870,-151.0,0.00040126,120]
[393646831,1762875049881,-151.0,0.00040126,120]
[393646832,1762875049891,-151.0,0.00040126,120]
[393646833,1762875049900,-151.0,0.00040126,120]
[393646834,1762875049910,-151.0,0.00040126,120]
[393646835,1762875049920,-151.0,0.00040126,120]
[393646836,1762875049931,-151.0,0.00040126,120]
[393646837,1762875049941,-151.0,0.00040126,120]
[393646838,1762875049950,-156.833559,0.00040126,120]
[393646839,1762875049960,-151.0,0.00040126,120]
[393646840,1762875049970,-151.0,0.00040126,120]
[393646841,1762875049979,-151.0,0.00040126,120]
[393646842,1762875049990,-151.0,0.00040126,120]
[393646843,1762875050000,-251.801332,0.00040126,120]
[393646844,1762875050010,-151.0,0.00040126,10]
[393646845,1762875050020,-151.0,0.00040126,120]
[393646846,1762875050029,-301.637509,0.00040126,120]
[393646847,1762875050039,-239.033808,0.00040126,120]
[393646848,1762875050050,-151.0,0.00040126,30]
[393646849,1762875050090,-151.0,0.00040126,30]
[393646850,1762875050102,-151.0,0.00040126,30]
[393646851,1762875050112,-375.53404,0.00040126,120]
[393646852,1762875050122,-375.53404,0.00040126,120]
[393646853,1762875050131,-375.53404,0.00040126,120]
[393646854,1762875050141,-375.53404,0.00040126,120]
[393646855,1762875050150,-375.53404,0.00040126,120]
[393646856,1762875050159,-375.53404,0.00040126,120]
[393646857,1762875050169,-375.53404,0.00040126,120]
[393646858,1762875050179,-375.53404,0.00040126,120]
[393646859,1762875050188,-375.53404,0.00040126,120]
[393646860,1762875050198,-375.53404,0.00040126,120]
[393646861,1762875050207,-151.0,0.00040126,120]
[393646862,1762875050217,-151.0,0.00040126,120]
[393646863,1762875050227,-151.0,0.00040126,120]
[393646864,1762875050237,-151.0,0.00040126,120]
[393646865,1762875050246,-151.0,0.00040126,120]
[393646866,1762875050256,-151.0,0.00040126,120]
[393646867,1762875050266,-151.0,0.00040126,120]
[393646868,1762875050275,-151.0,0.00040126,120]
[393646869,1762875050284,-219.205586,0.00040126,120]
[393646870,1762875050294,-151.0,0.00040126,120]
[393646871,1762875050304,-151.0,0.00040126,120]
[393646872,1762875050314,-151.0,0.00040126,120]
[393646873,1762875050324,-223.927984,0.00040126,120]
[393646874,1762875050333,-151.0,0.00040126,120]
[393646875,1762875050343,-218.68704,0.00040126,120]
[393646876,1762875050355,-151.0,0.00040126,15]
[393646877,1762875050369,-151.0,0.00040126,30]
[393646878,1762875050379,-151.0,0.00040126,30]
[393646879,1762875050389,-198.952602,0.00040126,30]
[393646880,1762875050399,-237.359073,0.00040126,120]
[393646881,1762875050409,-237.359073,0.00040126,120]
[393646882,1762875050418,-237.359073,0.00040126,120]
[393646883,1762875050428,-237.359073,0.00040126,120]
[393646884,1762875050438,-237.359073,0.00040126,120]
[393646885,1762875050447,-237.359073,0.00040126,120]
[393646886,1762875050457,-237.359073,0.00040126,120]
[393646887,1762875050467,-237.359073,0.00040126,120]
[393646888,1762875050476,-237.359073,0.00040126,120]
[393646889,1762875050486,-237.359073,0.00040126,120]
[393646890,1762875050496,-237.359073,0.00040126,120]
[393646891,1762875050506,-237.359073,0.00040126,120]
[393646892,1762875050516,-237.359073,0.00040126,120]
[393646893,1762875050525,-237.359073,0.00040126,120]
[393646894,1762875050534,-237.359073,0.00040126,120]
[393646895,1762875050544,-237.359073,0.00040126,120]
[393646896,1762875050553,-237.359073,0.00040126,120]
[393646897,1762875050563,-237.359073,0.00040126,120]
[393646898,1762875050577,-237.359073,0.00040126,120]
[393646899,1762875050595,-237.359075,0.00040126,120]
[393646900,1762875050607,-151.0,0.00040126,91]
[393646901,1762875050621,-151.0,0.00040126,91]
[393646902,1762875050630,-151.0,0.00040126,91]
[393646903,1762875050640,-151.0,0.00040126,91]
[393646904,1762875050651,-151.0,0.00040126,91]
[393646905,1762875050661,-151.0,0.00040126,91]
[393646906,1762875050671,-286.46789,0.00040126,91]
[393646907,1762875050681,-155.065267,0.00040126,120]
[393646908,1762875050691,-644.47362749,0.00040127,29]
[393646909,1762875050703,-151.612033,0.00040127,120]
[393646910,1762875050713,-151.0,0.00040127,120]
[393646911,1762875050724,-151.0,0.00040127,120]
[393646912,1762875050734,-151.0,0.00040127,120]
[393646913,1762875050744,-151.0,0.00040127,120]
[393646914,1762875050754,-151.0,0.00040127,120]
[393646915,1762875050764,-151.0,0.00040127,120]
[393646916,1762875050774,-151.0,0.00040127,120]
[393646917,1762875050784,-151.0,0.00040127,120]
[393646918,1762875050794,-151.0,0.00040127,120]
[393646919,1762875050804,-151.0,0.00040127,120]
[393646920,1762875050813,-151.0,0.00040127,120]
[393646921,1762875050823,-151.0,0.00040127,120]
[393646922,1762875050832,-151.0,0.00040127,120]
[393646923,1762875050842,-151.0,0.00040127,120]
[393646924,1762875050854,-151.0,0.00040127,120]
[393646925,1762875050864,-151.0,0.00040127,120]
[393646926,1762875050874,-180.030968,0.00040127,120]
[393646927,1762875050884,-151.0,0.00040127,120]
[393646928,1762875050894,-151.0,0.00040127,120]
[393646929,1762875050904,-151.0,0.00040127,120]
[393646930,1762875050913,-151.0,0.00040127,120]
[393646931,1762875050923,-151.0,0.00040127,120]
[393646932,1762875050933,-154.572269,0.00040127,120]
[393646933,1762875050943,-156.61926,0.00040127,120]
[393646934,1762875050953,-151.0,0.00040127,120]
[393646935,1762875050963,-154.868671,0.00040127,120]
[393646936,1762875050973,-151.0,0.00040127,120]
[393646937,1762875050983,-193.87476,0.00040127,120]
[393646938,1762875050993,-151.0,0.00040127,120]
[393646939,1762875051003,-163.494927,0.00040127,120]
[393646940,1762875051012,-151.0,0.00040127,120]
[393646941,1762875051021,-193.87476,0.00040127,120]
[393646942,1762875051031,-151.0,0.00040127,120]
[393646943,1762875051040,-193.87476,0.00040127,120]
[393646944,1762875051050,-151.0,0.00040127,120]
[393646945,1762875051060,-193.87476,0.00040127,120]
[393646946,1762875051069,-193.87476,0.00040127,120]
[393646947,1762875051078,-151.0,0.00040127,60]
[393646948,1762875051088,-151.0,0.00040127,120]
[393646949,1762875051100,-193.87476,0.00040127,120]
[393646950,1762875051110,-151.0,0.00040127,60]
[393646951,1762875051119,-151.0,0.00040127,120]
[393646952,1762875051129,-151.0,0.00040127,120]
[393646953,1762875051139,-193.87476,0.00040127,120]
[393646954,1762875051148,-151.0,0.00040127,60]
[393646955,1762875051158,-193.87476,0.00040127,120]
[393646956,1762875051167,-193.87476,0.00040127,120]
[393646957,1762875051181,-193.87476,0.00040127,120]
[393646958,1762875051190,-193.87476,0.00040127,120]
[393646959,1762875051200,-193.87476,0.00040127,120]
[393646960,1762875051210,-878922.50292315,0.00040127,7]
[393646961,1762875051327,-1741.00000002,0.00040127,7]
[393646962,1762875051339,-383.01856,0.00040127,7]
[393646963,1762875051353,-2747027.82787839,0.00040127,7]
[393646964,1762875051362,-10007.0,0.00040127,7]
[393646965,1762875051371,-291883.91016558,0.00040127,7]
[393646966,1762875051519,-193.87476,0.00040127,120]
[393646967,1762875051529,-95.43164,0.00040127,30]
[393646968,1762875051540,-214.816904,0.00040127,30]
[393646969,1762875051550,-193.87476,0.00040127,120]
[393646970,1762875051560,-310.248544,0.00040127,30]
[393646971,1762875051569,-193.87476,0.00040127,120]
[393646972,1762875051579,-193.87476,0.00040127,120]
[393646973,1762875051589,-193.87476,0.00040127,120]
[393646974,1762875051600,-193.87476,0.00040127,120]
[393646975,1762875051610,-62.560752,0.00040127,120]
[393646976,1762875051623,-131.314008,0.00040127,120]
[393646977,1762875051635,-310.248544,0.00040127,30]
[393646978,1762875051645,-193.874762,0.00040127,120]
[393646979,1762875051654,-26487.25746392,0.00040127,7]
[393646980,1762875051748,-2274941.19366184,0.00040127,7]
[393646981,1762875051918,-270.72500463,0.00035856,2]
[393646982,1762875051999,-150.0,0.00035171,2]
[393646983,1762875052009,-229.27499537,0.00035856,2]
[393646984,1762875052019,-500.0,0.00035993,2]
[393646985,1762875052029,-500.0,0.0003613,2]
[393646986,1762875052039,-113.62521368,0.00036267,2]
[393646987,1762875052050,-386.37478632,0.00036267,2]
[393646988,1762875052059,-500.0,0.00036404,2]
[393646989,1762875052068,-67.80757368,0.00036541,2]
[393646990,1762875052105,-406.18107441,0.00036541,2]
[393646991,1762875052114,-704.456,0.00037618,2]
[393646992,1762875052124,-310.248544,0.00040127,30]
[393646993,1762875052133,-310.248544,0.00040127,30]
[393646994,1762875052143,-310.248544,0.00040127,30]
[393646995,1762875052152,-310.248544,0.00040127,30]
[393646996,1762875052161,-310.248544,0.00040127,30]
[393646997,1762875052171,-215.030906,0.00040127,120]
[393646998,1762875052181,-310.248544,0.00040127,30]
[393646999,1762875052190,-215.030906,0.00040127,120]
[393647000,1762875052200,-310.248544,0.00040127,30]
[393647001,1762875052209,-215.030906,0.00040127,120]
[393647002,1762875052218,-310.248544,0.00040127,30]
[393647003,1762875052228,-310.248544,0.00040127,30]
[393647004,1762875052237,-6709.65108392,0.00040127,7]
[393647012,1762875855703,237.46905976,0.000164,2]
[393647015,1762876027446,-450.0,0.00021995,2]
[393647016,1762876047874,-250.0,0.00022994,2]
[393647017,1762876047900,-361.43761825,0.00023671,2]
[393647018,1762876047923,-239.19117816,0.0002399,2]
[393647019,1762876047947,-478.44322026,0.00024087,2]
[393647020,1762876047969,-248.7598143,0.00024176,2]
[393647021,1762876047993,-184.69910927,0.00024194,2]
[393647022,1762876057194,-756.90634497,0.00023571,2]
[393647023,1762876057217,-115.30089073,0.00024194,2]
[393647024,1762876057239,-300.0,0.00024195,2]
[393647025,1762876057261,-195.0,0.00024195,2]
[393647026,1762876057282,-182.7927643,0.00024195,2]
[393647028,1762876086927,-1364.41904367,0.00024195,2]
[393647029,1762876086950,-250.0,0.00024195,2]
[393647030,1762876086977,-195.0,0.00024195,2]
[393647031,1762876087001,-190.58095633,0.00025638,2]
[393647032,1762876096241,-1815.63412838,0.00025638,2]
[393647033,1762876096265,-184.36587162,0.00025948,2]
[393647034,1762876099166,-1015.63412838,0.00025948,2]
[393647035,1762876099197,-153.0,0.00025948,2]
[393647036,1762876099221,-300.0,0.00025949,2]
[393647037,1762876099246,-300.0,0.00025949,2]
[393647038,1762876099270,-231.36587162,0.00025949,2]
[393647055,1762876231832,-68.63412838,0.00025949,2]
[393647056,1762876231841,-150.99,0.0002595,2]
[393647057,1762876231851,-45.13434326,0.0002595,2]
[393647058,1762876231862,-301.0,0.0002595,2]
[393647059,1762876231873,-5850.0,0.0002595,2]
[393647060,1762876231897,-441.5132001,0.0002595,2]
[393647061,1762876231908,-3362.34245664,0.0002595,2]
[393647062,1762876231918,-3705.45714338,0.0002595,2]
[393647063,1762876231930,-515.21828317,0.0002595,2]
[393647064,1762876231941,-1550.68519934,0.0002595,2]
[393647065,1762876231954,-508.67861572,0.0002595,2]
[393647066,1762876231967,-3719.95075839,0.0002595,2]
[393647067,1762876231976,-9999.99,0.0002595,2]
[393647068,1762876231986,-9999.99,0.0002595,2]
[393647069,1762876231995,-626.40951003,0.0002595,2]
[393647070,1762876232004,-500.0,0.00025973,2]
[393647071,1762876232015,-500.0,0.00025973,2]
[393647072,1762876232025,-6684.37,0.00027649,2]
[393647073,1762876232036,-999.99,0.00027649,2]
[393647074,1762876232045,-9999.99,0.00027649,2]
[393647075,1762876232055,-3577.32,0.00027649,2]
[393647076,1762876232064,-500.0,0.0002765,5]
[393647077,1762876232074,-267.25458871,0.00028451,2]
[393647078,1762876232083,-200.0,0.00029881,2]
[393647079,1762876232093,-3361.37,0.00030106,2]
[393647080,1762876232103,-3678.13,0.00030161,120]
[393647081,1762876232113,-629.51525607,0.00030919,4]
[393647082,1762876232123,-150.0,0.00030954,2]
[393647083,1762876232132,-150.0,0.00030954,120]
[393647084,1762876232142,-353.65862373,0.00031051,2]
[393647085,1762876232151,-9574.23943293,0.00031061,2]
[393647087,1762876232163,-48262.9781155,0.00031061,2]
[393647089,1762876232174,-663.0,0.00031061,2]
[393647090,1762876232185,-13369.82578459,0.00031061,2]
[393647091,1762876232196,-652.30130565,0.00031061,2]
[393647092,1762876232207,-480.71,0.00031061,2]
[393647094,1762876232219,-345.51780687,0.00031061,2]
[393647096,1762876232229,-273.84430536,0.00031061,2]
[393647098,1762876232241,-681.1732491,0.00031061,2]
[393647100,1762876232251,-500.0,0.00031073,5]
[393647102,1762876232260,-500.0,0.00031073,5]
[393647104,1762876232269,-155.49640613,0.00031073,2]
[393647106,1762876232279,-500.88687561,0.00031073,5]
[393647108,1762876232288,-500.0,0.00031073,5]
[393647110,1762876232299,-500.0,0.00031073,5]
[393647112,1762876232308,-434.0,0.00031151,2]
[393647114,1762876232318,-1852.15745874,0.00031159,2]
[393647116,1762876232330,-556.64674786,0.00031159,2]
[393647118,1762876232342,-2926.6787721,0.00031159,2]
[393647119,1762876232368,-518.0175,0.00031159,2]
[393647120,1762876232380,-372.51000098,0.00031159,2]
[393647129,1762876238537,-407.2729115,0.00031159,2]
[393647131,1762876238591,-11507.32672946,0.00031159,2]
[393647132,1762876238604,-3180.75987936,0.00031159,2]
[393647133,1762876238614,-193.72100203,0.00031315,2]
[393647134,1762876238623,-500.0,0.00031315,2]
[393647135,1762876238633,-517.84451115,0.00031315,2]
[393647136,1762876238643,-500.0,0.00031315,2]
[393647137,1762876238817,-500.0,0.00031315,2]
[393647138,1762876238827,-276.07175353,0.00031315,2]
[393647139,1762876238837,-2474.68113506,0.00031317,2]
[393647141,1762876238847,-3903.87447611,0.00031446,2]
[393647142,1762876238859,-1035.3,0.00031446,2]
[393647143,1762876239938,-60.82552389,0.00031446,2]
[393647144,1762876239948,-468.68526989,0.00031621,5]
[393647145,1762876239962,-1000.0,0.00031621,5]
[393647147,1762876239973,-667.05,0.00031724,2]
[393647149,1762876239982,-210.10661975,0.00032,120]
[393647151,1762876239994,-567.24808083,0.00032,120]
[393647152,1762876240003,-198.35557657,0.00032,120]
[393647153,1762876240014,-353.6586237,0.00032049,2]
[393647154,1762876240024,-8637.55,0.00032151,2]
[393647155,1762876240036,-500.97586857,0.00032168,5]
[393647156,1762876240048,-214.97369979,0.000326,5]
[393647157,1762876240060,-500.0,0.000326,5]
[393647158,1762876240069,-500.0,0.000326,5]
[393647159,1762876240079,-500.0,0.00032973,5]
[393647160,1762876240089,-151.0,0.0003298,2]
[393647161,1762876240099,-151.0,0.0003298,2]
[393647162,1762876240109,-151.0,0.0003298,2]
[393647163,1762876240118,-151.0,0.0003298,2]
[393647164,1762876240128,-151.0,0.0003298,2]
[393647165,1762876240138,-151.0,0.0003298,2]
[393647166,1762876240148,-151.0,0.0003298,2]
[393647167,1762876240157,-151.0,0.0003298,2]
[393647168,1762876240167,-151.0,0.0003298,2]
[393647169,1762876240176,-151.0,0.0003298,2]
[393647170,1762876240186,-151.0,0.0003298,2]
[393647171,1762876240195,-151.0,0.0003298,2]
[393647172,1762876240206,-151.0,0.0003298,2]
[393647173,1762876240215,-151.0,0.0003298,2]
[393647174,1762876240225,-151.0,0.0003298,2]
[393647175,1762876240235,-151.0,0.0003298,2]
[393647176,1762876240245,-151.0,0.0003298,2]
[393647177,1762876240254,-151.0,0.0003298,2]
[393647178,1762876240264,-151.0,0.0003298,2]
[393647179,1762876240274,-151.0,0.0003298,2]
[393647180,1762876240283,-151.0,0.0003298,2]
[393647181,1762876240293,-151.0,0.0003298,2]
[393647182,1762876240304,-151.0,0.0003298,2]
[393647183,1762876240314,-151.0,0.0003298,2]
[393647184,1762876240323,-151.0,0.0003298,2]
[393647185,1762876240333,-151.0,0.0003298,2]
[393647186,1762876240342,-151.0,0.0003298,2]
[393647187,1762876240352,-567.24808083,0.00033,120]
[393647188,1762876240361,-3246.202,0.00033,34]
[393647189,1762876240371,-409.718,0.00033,34]
[393647190,1762876240380,-505.14650434,0.00033,5]
[393647191,1762876240389,-505.83127506,0.00033,5]
[393647192,1762876240398,-501.80740999,0.00033,5]
[393647193,1762876240408,-150.0,0.00033,5]
[393647194,1762876240417,-353.6586237,0.00033046,2]
[393647196,1762876240427,-152.0,0.00033164,2]
[393647197,1762876240436,-153.06,0.00033191,2]
[393647199,1762876240445,-250.0,0.00033548,5]
[393647200,1762876240455,-1085.1018,0.00033644,10]
[393647201,1762876240464,-567.24808083,0.000339,120]
[393647202,1762876240473,-353.6586237,0.00034044,2]
[393647203,1762876240483,-350.0,0.00034096,5]
[393647204,1762876240493,-234.5116,0.00034498,2]
[393647205,1762876240502,-1000.0,0.00034598,2]
[393647206,1762876240512,-33287.216,0.00034598,2]
[393647207,1762876240522,-403.6416507,0.00034644,5]
[393647208,1762876240532,-500.0,0.00034707,2]
[393647209,1762876240542,-1000.0,0.00034714,2]
[393647210,1762876240553,-2500.0,0.00034714,2]
[393647211,1762876240563,-181.30257207,0.00034714,15]
[393647212,1762876240573,-10228.57962731,0.00034715,2]
[393647213,1762876240582,-517.31808734,0.00034803,20]
[393647214,1762876240591,-500.0,0.00034803,20]
[393647215,1762876240601,-500.0,0.00034803,7]
[393647216,1762876240610,-500.0,0.00034803,20]
[393647217,1762876240619,-93930.58300768,0.00034804,3]
[393647218,1762876240632,-13723.60268527,0.00034804,3]
[393647219,1762876240643,-1099.96406077,0.00034804,3]
[393647220,1762876240654,-31968.70205428,0.00034804,3]
[393647221,1762876240663,-179.54679155,0.00034807,2]
[393647222,1762876240674,-500.0,0.00034813,7]
[393647223,1762876240683,-500.0,0.00034813,7]
[393647224,1762876240692,-257.4294944,0.00034813,7]
[393647225,1762876240702,-229.97797826,0.00034813,7]
[393647226,1762876240711,-602.90981307,0.00034813,7]
[393647227,1762876240720,-285198.7,0.00034814,2]
[393647228,1762876240729,-463.28511932,0.00034825,5]
[393647229,1762876240739,-2994.91550426,0.00034873,5]
[393647230,1762876240748,-204.91063775,0.00034873,5]
[393647231,1762876240758,-2751.0,0.00034925,120]
[393647232,1762876240768,-567.24808083,0.00035,120]
[393647234,1762876240777,-185.092166,0.00035,2]
[393647235,1762876240787,-155.393773,0.00035,2]
[393647236,1762876240796,-181.30257207,0.00035305,15]
[393647237,1762876240806,-10228.57962729,0.00035305,2]
[393647238,1762876240815,-500.0,0.000354,5]
[393647239,1762876240825,-500.26491085,0.0003555,5]
[393647240,1762876240834,-500.0,0.0003555,5]
[393647241,1762876240844,-500.0,0.0003555,5]
[393647242,1762876240854,-500.0,0.0003555,5]
[393647243,1762876240863,-500.0,0.0003555,5]
[393647244,1762876240872,-500.0,0.0003555,5]
[393647245,1762876240882,-200.0,0.00035873,5]
[393647246,1762876240892,-12580.3838793,0.00035885,3]
[393647247,1762876240901,-181.30257207,0.00035895,15]
[393647248,1762876240911,-1209.29,0.00035895,2]
[393647249,1762876240921,-10228.57962729,0.00035896,2]
[393647250,1762876240931,-567.24808083,0.00036,120]
[393647251,1762876240940,-12792.986528,0.00036088,3]
[393647252,1762876240950,-1002.32902604,0.00036098,5]
[393647253,1762876240962,-1003.26138861,0.00036098,5]
[393647254,1762876240972,-178.3008851,0.00036098,5]
[393647255,1762876240981,-1096.46520902,0.00036114,30]
[393647256,1762876240991,-1101.97494401,0.00036114,30]
[393647257,1762876241000,-1099.63762039,0.00036114,30]
[393647258,1762876241010,-1000.0,0.00036114,30]
[393647259,1762876241020,-1245.36409428,0.00036114,30]
[393647260,1762876241030,-1000.0,0.00036114,30]
[393647261,1762876241039,-1000.0,0.00036114,30]
[393647262,1762876241051,-1000.0,0.00036114,30]
[393647263,1762876241062,-1000.0,0.0003613,2]
[393647264,1762876241072,-192.35,0.00036226,120]
[393647265,1762876241082,-12580.3838793,0.00036282,3]
[393647266,1762876241092,-3169.13,0.00036292,2]
[393647267,1762876241101,-185.092166,0.00036297,2]
[393647268,1762876241111,-155.393773,0.00036297,2]
[393647269,1762876241120,-155.922067,0.00036297,2]
[393647270,1762876241130,-150.0,0.00036486,2]
[393647271,1762876241139,-10228.57962729,0.00036486,2]
[393647272,1762876241149,-552.1,0.00036519,14]
[393647273,1762876241158,-12792.986528,0.00036548,4]
[393647274,1762876241168,-300.0,0.00036558,5]
[393647275,1762876241178,-552.1,0.00036793,14]
[393647276,1762876241205,-5087.0,0.00037,2]
[393647277,1762876241216,-552.1,0.00037067,14]
[393647278,1762876241226,-164.23,0.00037069,60]
[393647279,1762876241236,-10228.57962729,0.00037076,2]
[393647280,1762876241246,-452.0,0.0003714,2]
[393647281,1762876241256,-552.1,0.00037341,14]
[393647282,1762876241266,-1000.0,0.00037484,2]
[393647283,1762876241276,-185.092166,0.00037594,2]
[393647284,1762876241285,-155.393773,0.00037594,2]
[393647285,1762876241296,-155.922067,0.00037594,2]
[393647286,1762876241307,-12580.3838793,0.00037598,4]
[393647287,1762876241317,-552.1,0.00037615,14]
[393647288,1762876241326,-246.89823067,0.00037618,2]
[393647289,1762876241335,-10228.57962729,0.00037667,2]
[393647290,1762876241345,-12792.986528,0.0003774,4]
[393647291,1762876241355,-552.12360344,0.00037889,14]
[393647292,1762876241364,-452.0,0.00037914,2]
[393647293,1762876241374,-452.0,0.00037949,120]
[393647294,1762876241384,-452.0,0.000381,2]
[393647295,1762876241393,-217.04852096,0.00038184,2]
[393647296,1762876241403,-10228.57962729,0.00038257,2]
[393647297,1762876241414,-452.0,0.00038351,120]
[393647298,1762876241423,-1000.0,0.00038356,120]
[393647299,1762876241433,-1000.0,0.00038356,120]
[393647300,1762876241442,-1000.0,0.00038356,120]
[393647301,1762876241452,-1000.0,0.00038356,120]
[393647302,1762876241462,-588.89694481,0.00038356,120]
[393647303,1762876241472,-309.06025452,0.00038356,2]
[393647304,1762876241482,-508.14376047,0.00038356,20]
[393647305,1762876241491,-172.4500098,0.00038356,120]
[393647306,1762876241501,-150.47403167,0.00038356,20]
[393647307,1762876241510,-500.0,0.00038356,20]
[393647308,1762876241519,-500.0,0.00038356,20]
[393647309,1762876241529,-483.06831784,0.00038356,20]
[393647310,1762876241539,-219.30309074,0.00038356,20]
[393647311,1762876241548,-500.0,0.00038356,2]
[393647312,1762876241558,-500.0,0.00038356,2]
[393647313,1762876241567,-500.0,0.00038356,2]
[393647314,1762876241577,-500.0,0.00038356,2]
[393647315,1762876241586,-500.0,0.00038356,2]
[393647316,1762876241596,-500.0,0.00038356,2]
[393647317,1762876241606,-453.0,0.00038371,7]
[393647318,1762876241616,-217.04852096,0.00038472,2]
[393647319,1762876241626,-217.04852096,0.00038725,2]
[393647320,1762876241636,-452.0,0.00038776,7]
[393647321,1762876241645,-452.0,0.00038793,7]
[393647322,1762876241655,-1000.0,0.00038839,2]
[393647323,1762876241664,-10228.57962729,0.00038847,2]
[393647324,1762876241674,-12580.3838793,0.00038852,4]
[393647325,1762876241683,-12792.986528,0.00038862,4]
[393647326,1762876241693,-185.092166,0.00038892,2]
[393647327,1762876241703,-155.393773,0.00038892,2]
[393647328,1762876241712,-155.922067,0.00038892,2]
[393647329,1762876241721,-2000.0,0.000389,2]
[393647330,1762876241730,-452.0,0.00038975,7]
[393647331,1762876241739,-217.04852096,0.00038994,2]
[393647332,1762876241749,-5550.33054395,0.00039,2]
[393647333,1762876241758,-267.43,0.00039032,14]
[393647334,1762876241767,-453.0,0.00039034,2]
[393647335,1762876241777,-452.0,0.00039045,2]
[393647336,1762876241786,-1000.0,0.000391,7]
[393647337,1762876241795,-220.59,0.00039101,14]
[393647338,1762876241804,-452.0,0.00039257,120]
[393647339,1762876241814,-678.18046634,0.0003929,2]
[393647340,1762876241823,-217.04852096,0.00039372,2]
[393647341,1762876241833,-12580.3838793,0.00039411,4]
[393647342,1762876241842,-12792.986528,0.00039421,4]
[393647343,1762876241852,-12580.3838793,0.00039428,4]
[393647344,1762876241862,-500.0,0.0003943,7]
[393647345,1762876241872,-500.0,0.0003943,20]
[393647346,1762876241881,-3426.0,0.00039431,2]
[393647347,1762876241891,-574.0,0.00039431,2]
[393647348,1762876241901,-608.0,0.00039431,2]
[393647349,1762876241910,-1317.0,0.00039431,2]
[393647350,1762876241920,-355.997,0.00039431,2]
[393647351,1762876241929,-1642.291,0.00039431,2]
[393647352,1762876241938,-1274.0,0.00039431,2]
[393647353,1762876241949,-813.0,0.00039431,2]
[393647354,1762876241961,-2143.0,0.00039431,2]
[393647355,1762876241971,-560.0,0.00039431,2]
[393647356,1762876241980,-6481.0,0.00039431,2]
[393647357,1762876241991,-10228.57962729,0.00039438,2]
[393647358,1762876242001,-217.04852096,0.00039461,2]
[393647359,1762876242010,-452.0,0.00039506,2]
[393647360,1762876242020,-452.0,0.00039532,7]
[393647361,1762876242033,-164.23,0.00039588,60]
[393647362,1762876242042,-1000.0,0.000396,7]
[393647363,1762876242051,-262.72460208,0.00039641,96]
[393647364,1762876242065,-2313.48288,0.0003972,2]
[393647365,1762876242075,-345.53,0.000399,60]
[393647366,1762876242085,-12792.986528,0.00039946,4]
[393647367,1762876242096,-185.092166,0.00039956,60]
[393647368,1762876242105,-155.393773,0.00039956,60]
[393647369,1762876242116,-600.0,0.00039957,15]
[393647370,1762876242127,-600.0,0.00039957,15]
[393647371,1762876242137,-600.0,0.00039957,15]
[393647372,1762876242147,-600.0,0.00039957,15]
[393647373,1762876242157,-600.0,0.00039957,15]
[393647374,1762876242167,-600.0,0.00039957,15]
[393647375,1762876242176,-600.0,0.00039957,15]
[393647376,1762876242186,-600.0,0.00039957,15]
[393647377,1762876242195,-600.0,0.00039957,15]
[393647378,1762876242205,-600.0,0.00039957,15]
[393647379,1762876242215,-217.04852098,0.00039959,2]
[393647380,1762876242225,-460.91,0.0004,7]
[393647381,1762876242234,-3911.38720188,0.0004,30]
[393647382,1762876242244,-12580.3838793,0.00040016,4]